fUSD/lending_fUSD_20240426
["ID","MTS","AMOUNT","RATE_DAILY","PERIOD"]
[323667264,1714152643809,-542.99,0.00011286,2]
[323667265,1714152643819,-500.0,0.00011286,2]
[323667266,1714152643828,-500.0,0.00011286,2]
[323667267,1714152643838,-500.0,0.00011286,2]
[323667268,1714152643848,-500.0,0.00011286,2]
[323667269,1714152643857,-549.47,0.00011286,2]
[323667270,1714152643867,-1353.45,0.00011286,2]
[323667271,1714152643876,-995.38,0.00011286,2]
[323667272,1714152643886,-500.0,0.00011286,2]
[323667273,1714152643896,-500.0,0.00011286,2]
[323667274,1714152643905,-500.0,0.00011286,2]
[323667275,1714152643914,-500.0,0.00011286,2]
[323667276,1714152643924,-500.0,0.00011286,2]
[323667277,1714152643934,-743.54,0.00011286,2]
[323667278,1714152643945,-500.0,0.00011286,2]
[323667279,1714152643955,-2056.67,0.00011286,2]
[323667280,1714152643964,-2203.53,0.00011286,2]
[323667281,1714152643974,-3716.29,0.00011286,2]
[323667282,1714152643983,-500.0,0.00011286,2]
[323667283,1714152643993,-7061.14,0.00011286,2]
[323667284,1714152644002,-4653.68,0.00011286,2]
[323667285,1714152644012,-500.0,0.00011286,2]
[323667286,1714152644021,-500.0,0.00011286,2]
[323667287,1714152644031,-500.0,0.00011286,2]
[323667288,1714152644041,-500.0,0.00011286,2]
[323667289,1714152644050,-2200.5,0.00011286,2]
[323667290,1714152644059,-1689.16,0.00011286,2]
[323667291,1714152644069,-1215.07,0.00011286,2]
[323667292,1714152644078,-500.0,0.00011286,2]
[323667293,1714152644087,-500.0,0.00011286,2]
[323667294,1714152644096,-3706.62,0.00011286,2]
[323667295,1714152644107,-500.0,0.00011286,2]
[323667296,1714152644116,-500.0,0.00011286,2]
[323667297,1714152644125,-4697.1,0.00011286,2]
[323667298,1714152644135,-500.0,0.00011286,2]
[323667299,1714152644144,-500.0,0.00011286,2]
[323667300,1714152644153,-500.0,0.00011286,2]
[323667301,1714152644162,-500.0,0.00011286,2]
[323667302,1714152644171,-487.76207151,0.00011286,2]
[323667303,1714152644181,-500.0,0.00011286,2]
[323667304,1714152644192,-500.0,0.00011286,2]
[323667305,1714152644202,-5858.54,0.00011286,2]
[323667306,1714152644212,-500.0,0.00011286,2]
[323667307,1714152644222,-500.0,0.00011286,2]
[323667308,1714152644233,-500.0,0.00011286,2]
[323667309,1714152644243,-500.0,0.00011286,2]
[323667310,1714152644252,-500.0,0.00011286,2]
[323667311,1714152644262,-500.0,0.00011286,2]
[323667312,1714152644272,-1261.36,0.00011286,2]
[323667313,1714152644282,-500.0,0.00011286,2]
[323667314,1714152644291,-500.0,0.00011286,2]
[323667315,1714152644301,-500.0,0.00011286,2]
[323667316,1714152644310,-500.0,0.00011286,2]
[323667317,1714152644320,-1754.47,0.00011286,2]
[323667318,1714152644330,-500.0,0.00011286,2]
[323667319,1714152644339,-500.0,0.00011286,2]
[323667320,1714152644348,-500.0,0.00011286,2]
[323667321,1714152644357,-500.0,0.00011286,2]
[323667322,1714152644366,-500.0,0.00011286,2]
[323667323,1714152644376,-634.15,0.00011286,2]
[323667324,1714152644385,-500.0,0.00011286,2]
[323667325,1714152644596,-180.29,0.00011286,2]
[323667326,1714152644605,-500.0,0.00011286,2]
[323667327,1714152644614,-500.0,0.00011286,2]
[323667328,1714152644624,-500.0,0.00011286,2]
[323667329,1714152644633,-500.0,0.00011286,2]
[323667330,1714152644642,-500.0,0.00011286,2]
[323667331,1714152644651,-500.0,0.00011286,2]
[323667332,1714152644661,-1018.13,0.00011286,2]
[323667333,1714152644670,-500.0,0.00011286,2]
[323667334,1714152644679,-3486.53,0.00011286,2]
[323667335,1714152644689,-500.0,0.00011286,2]
[323667336,1714152644698,-500.0,0.00011286,2]
[323667337,1714152644707,-500.0,0.00011286,2]
[323667338,1714152644717,-500.0,0.00011286,2]
[323667339,1714152644725,-500.0,0.00011286,2]
[323667340,1714152644734,-500.0,0.00011286,2]
[323667341,1714152644744,-500.0,0.00011286,2]
[323667342,1714152644753,-1395.91,0.00011286,2]
[323667343,1714152644762,-500.0,0.00011286,2]
[323667344,1714152644771,-500.0,0.00011286,2]
[323667345,1714152644781,-500.0,0.00011286,2]
[323667346,1714152644790,-500.0,0.00011286,2]
[323667347,1714152644799,-2170.66,0.00011286,2]
[323667348,1714152644808,-635.89,0.00011286,2]
[323667349,1714152644818,-576.2703296,0.00011286,2]
[323667350,1714152644827,-500.0,0.00011286,2]
[323667351,1714152644837,-500.0,0.00011286,2]
[323667352,1714152644846,-500.0,0.00011286,2]
[323667353,1714152644856,-500.0,0.00011286,2]
[323667354,1714152644865,-500.0,0.00011286,2]
[323667355,1714152644875,-500.0,0.00011286,2]
[323667356,1714152644886,-500.0,0.00011286,2]
[323667357,1714152644895,-500.0,0.00011286,2]
[323667358,1714152644905,-500.0,0.00011286,2]
[323667359,1714152644915,-500.0,0.00011286,2]
[323667360,1714152644925,-500.0,0.00011286,2]
[323667361,1714152644935,-500.0,0.00011286,2]
[323667362,1714152644946,-500.0,0.00011286,2]
[323667363,1714152644956,-1400.63,0.00011286,2]
[323667364,1714152644966,-500.0,0.00011286,2]
[323667365,1714152644975,-694.18,0.00011286,2]
[323667366,1714152644985,-500.0,0.00011286,2]
[323667367,1714152644995,-500.0,0.00011286,2]
[323667368,1714152645005,-500.0,0.00011286,2]
[323667369,1714152645015,-500.0,0.00011286,2]
[323667370,1714152645025,-500.0,0.00011286,2]
[323667371,1714152645036,-500.0,0.00011286,2]
[323667372,1714152645047,-500.0,0.00011286,2]
[323667373,1714152645057,-2993.07,0.00011286,2]
[323667374,1714152645068,-632.9,0.00011286,2]
[323667375,1714152645079,-500.0,0.00011286,2]
[323667376,1714152645088,-500.0,0.00011286,2]
[323667377,1714152645097,-503.29,0.00011286,2]
[323667378,1714152645107,-1410.37,0.00011286,2]
[323667379,1714152645116,-180.72,0.00011286,2]
[323667380,1714152645125,-506.5,0.00011286,2]
[323667381,1714152645135,-500.0,0.00011286,2]
[323667382,1714152645144,-500.0,0.00011286,2]
[323667383,1714152645154,-500.0,0.00011286,2]
[323667384,1714152645163,-500.0,0.00011286,2]
[323667385,1714152645172,-473.05233594,0.00011287,2]
[323667386,1714152645182,-500.0,0.00011287,2]
[323667387,1714152645192,-500.0,0.00011287,2]
[323667388,1714152645202,-498.84989153,0.00011287,2]
[323667389,1714152645213,-500.0,0.00011287,2]
[323667390,1714152645222,-487.41615886,0.00011287,2]
[323667391,1714152645231,-501.22660929,0.00011287,2]
[323667392,1714152645241,-466.02966834,0.00011287,2]
[323667393,1714152645252,-500.0,0.00011287,2]
[323667394,1714152645261,-500.0,0.00011287,2]
[323667395,1714152645270,-500.0,0.00011287,2]
[323667396,1714152645279,-500.0,0.00011287,2]
[323667397,1714152645288,-500.0,0.00011287,2]
[323667398,1714152645297,-500.0,0.00011287,2]
[323667399,1714152645306,-500.0,0.00011287,2]
[323667400,1714152645317,-500.0,0.00011287,2]
[323667401,1714152645328,-500.0,0.00011287,2]
[323667402,1714152645338,-500.0,0.00011287,2]
[323667403,1714152645348,-500.0,0.00011287,2]
[323667404,1714152645357,-500.0,0.00011287,2]
[323667405,1714152645367,-500.0,0.00011287,2]
[323667406,1714152645376,-500.0,0.00011287,2]
[323667407,1714152645385,-500.0,0.00011287,2]
[323667408,1714152645395,-500.0,0.00011287,2]
[323667409,1714152645404,-500.0,0.00011287,2]
[323667410,1714152645415,-500.0,0.00011287,2]
[323667411,1714152645424,-500.0,0.00011287,2]
[323667412,1714152645439,-548.66,0.00011287,2]
[323667413,1714152645449,-500.0,0.00011287,2]
[323667414,1714152645461,-500.0,0.00011287,2]
[323667415,1714152645470,-500.0,0.00011287,2]
[323667416,1714152645479,-500.0,0.00011287,2]
[323667417,1714152645489,-311.63,0.00011287,2]
[323667418,1714152645500,-500.0,0.00011287,2]
[323667419,1714152645509,-500.0,0.00011287,2]
[323667420,1714152645519,-500.0,0.00011287,2]
[323667421,1714152645529,-500.0,0.00011287,2]
[323667422,1714152645537,-500.0,0.00011287,2]
[323667423,1714152645547,-500.0,0.00011287,2]
[323667424,1714152645556,-500.0,0.00011287,2]
[323667425,1714152645566,-500.0,0.00011287,2]
[323667426,1714152645576,-500.0,0.00011287,2]
[323667427,1714152645585,-500.0,0.00011287,2]
[323667428,1714152645595,-500.0,0.00011287,2]
[323667429,1714152645604,-500.0,0.00011287,2]
[323667430,1714152645613,-500.0,0.00011287,2]
[323667431,1714152645623,-467.28500276,0.00011287,2]
[323667432,1714152645634,-500.0,0.00011287,2]
[323667433,1714152645645,-549.62,0.00011287,2]
[323667434,1714152645654,-500.0,0.00011287,2]
[323667435,1714152645663,-500.0,0.00011287,2]
[323667436,1714152645673,-500.0,0.00011287,2]
[323667437,1714152645682,-500.0,0.00011287,2]
[323667438,1714152645693,-538.08,0.00011287,2]
[323667439,1714152645703,-500.0,0.00011557,2]
[323667440,1714152645712,-500.0,0.00011557,2]
[323667441,1714152645722,-500.0,0.00011557,2]
[323667442,1714152645731,-500.0,0.00011557,2]
[323667443,1714152645740,-1189.69,0.00011557,2]
[323667444,1714152645749,-500.0,0.00011557,2]
[323667445,1714152645758,-865.26,0.00011558,2]
[323667446,1714152645767,-1138.35,0.00011558,2]
[323667447,1714152645776,-652.33,0.00011558,2]
[323667448,1714152645785,-1696.19,0.00011558,2]
[323667449,1714152645794,-1205.76,0.00011558,2]
[323667450,1714152645804,-1433.13,0.00011558,2]
[323667451,1714152645813,-1915.91,0.00011558,2]
[323667452,1714152645822,-876.69,0.00011558,2]
[323667453,1714152645832,-700.95,0.00011558,2]
[323667454,1714152645841,-4532.28,0.00011558,2]
[323667456,1714152645850,-1828.22,0.00011558,2]
[323667458,1714152645859,-2775.78,0.00011558,2]
[323667460,1714152645869,-2071.78,0.00011558,2]
[323667462,1714152645878,-902.32,0.00011558,2]
[323667464,1714152645888,-1976.48,0.00011558,2]
[323667467,1714152645897,-2203.21,0.00011558,2]
[323667468,1714152645907,-915.56,0.00011558,2]
[323667472,1714152645917,-500.0,0.00011558,2]
[323667474,1714152645928,-888.95,0.00011558,2]
[323667476,1714152645940,-2442.62,0.00011558,2]
[323667480,1714152645950,-678.9,0.00011558,2]
[323667484,1714152645960,-500.0,0.00011558,2]
[323667487,1714152645971,-4639.13,0.00011558,2]
[323667489,1714152645981,-2127.04,0.00011558,2]
[323667491,1714152645991,-500.0,0.00011558,2]
[323667493,1714152646001,-3260.45,0.00011558,2]
[323667495,1714152646010,-500.0,0.00011558,2]
[323667497,1714152646019,-2317.34,0.00011558,2]
[323667499,1714152646030,-500.0,0.00011559,2]
[323667501,1714152646039,-500.0,0.00011559,2]
[323667503,1714152646048,-500.96,0.00011559,2]
[323667505,1714152646057,-500.0,0.00011559,2]
[323667507,1714152646067,-703.5,0.00011559,2]
[323667509,1714152646077,-1137.54,0.00011559,2]
[323667511,1714152646086,-500.0,0.00011559,2]
[323667513,1714152646096,-500.0,0.00011559,2]
[323667515,1714152646106,-500.0,0.00011559,2]
[323667517,1714152646114,-1500.72,0.00011559,2]
[323667519,1714152646124,-524.5,0.00011559,2]
[323667521,1714152646133,-618.61,0.00011559,2]
[323667523,1714152646142,-500.0,0.00011559,2]
[323667525,1714152646151,-500.0,0.00011559,2]
[323667527,1714152646160,-500.0,0.00011559,2]
[323667529,1714152646169,-932.82,0.00011559,2]
[323667532,1714152646179,-500.0,0.00011559,2]
[323667534,1714152646190,-1538.8,0.00011559,2]
[323667536,1714152646199,-1521.87,0.00011559,2]
[323667538,1714152646208,-500.0,0.00011559,2]
[323667540,1714152646217,-500.0,0.00011559,2]
[323667542,1714152646226,-500.0,0.00011559,2]
[323667544,1714152646236,-552.41,0.00011559,2]
[323667546,1714152646246,-1697.94,0.00011559,2]
[323667548,1714152646255,-500.0,0.00011559,2]
[323667550,1714152646265,-500.0,0.00011559,2]
[323667552,1714152646274,-500.0,0.00011559,2]
[323667554,1714152646283,-251.16,0.00011559,2]
[323667556,1714152646292,-651.13,0.00011559,2]
[323667558,1714152646301,-594.35,0.00011559,2]
[323667560,1714152646311,-500.0,0.00011559,2]
[323667562,1714152646320,-500.0,0.00011559,2]
[323667564,1714152646330,-500.0,0.00011559,2]
[323667566,1714152646339,-500.0,0.00011559,2]
[323667568,1714152646349,-686.74,0.00011559,2]
[323667570,1714152646358,-500.0,0.00011559,2]
[323667572,1714152646368,-500.0,0.00011559,2]
[323667574,1714152646377,-500.0,0.00011559,2]
[323667576,1714152646386,-500.0,0.00011559,2]
[323667578,1714152646396,-500.0,0.00011559,2]
[323667580,1714152646405,-539.3,0.00011559,2]
[323667582,1714152646415,-623.98,0.00011559,2]
[323667584,1714152646425,-500.0,0.00011559,2]
[323667586,1714152646437,-500.0,0.00011559,2]
[323667588,1714152646448,-500.0,0.00011559,2]
[323667590,1714152646458,-500.0,0.00011559,2]
[323667592,1714152646467,-500.0,0.00011559,2]
[323667595,1714152646477,-578.68,0.00011559,2]
[323667597,1714152646486,-1944.11,0.00011559,2]
[323667599,1714152646496,-501.63488696,0.00011559,2]
[323667601,1714152646506,-500.0,0.00011559,2]
[323667603,1714152646516,-500.0,0.00011559,2]
[323667605,1714152646526,-1094.02,0.00011559,2]
[323667607,1714152646535,-500.0,0.00011559,2]
[323667609,1714152646544,-500.0,0.00011559,2]
[323667611,1714152646554,-500.0,0.00011559,2]
[323667613,1714152646563,-500.0,0.00011559,2]
[323667615,1714152646572,-1541.07,0.00011559,2]
[323667617,1714152646581,-501.81947576,0.00011559,2]
[323667619,1714152646590,-500.0,0.00011559,2]
[323667621,1714152646599,-606.83,0.00011559,2]
[323667623,1714152646609,-500.0,0.00011559,2]
[323667625,1714152646618,-500.0,0.00011559,2]
[323667627,1714152646628,-500.0,0.00011559,2]
[323667629,1714152646637,-1042.16,0.00011559,2]
[323667631,1714152646646,-608.61,0.00011559,2]
[323667633,1714152646655,-500.0,0.00011559,2]
[323667634,1714152646664,-500.0,0.00011559,2]
[323667635,1714152646673,-500.0,0.00011559,2]
[323667636,1714152646683,-500.0,0.00011559,2]
[323667637,1714152646693,-8432.15,0.00011559,2]
[323667638,1714152646702,-1429.23,0.00011559,2]
[323667639,1714152646712,-500.0,0.00011559,2]
[323667640,1714152646721,-7681.17,0.00011559,2]
[323667641,1714152646730,-541.27,0.00011559,2]
[323667642,1714152646739,-8762.46,0.00011559,2]
[323667643,1714152646749,-2563.29,0.00011559,2]
[323667644,1714152646758,-1039.18,0.00011559,2]
[323667645,1714152646768,-500.0,0.00011559,2]
[323667646,1714152646777,-1019.97,0.00011559,2]
[323667647,1714152646786,-500.0,0.00011559,2]
[323667648,1714152646795,-3533.62,0.00011559,2]
[323667650,1714152646805,-3765.55,0.00011559,2]
[323667652,1714152646814,-736.35,0.00011559,2]
[323667654,1714152646823,-6504.27,0.00011559,2]
[323667656,1714152646833,-500.0,0.00011559,2]
[323667659,1714152646842,-1592.05,0.00011559,2]
[323667660,1714152646852,-3157.13,0.00011559,2]
[323667663,1714152646861,-1135.78,0.00011559,2]
[323667664,1714152646870,-644.12,0.00011559,2]
[323667666,1714152646879,-500.0,0.00011559,2]
[323667669,1714152646889,-500.0,0.00011559,2]
[323667671,1714152646898,-500.0,0.00011559,2]
[323667673,1714152646907,-7969.39,0.00011559,2]
[323667682,1714152646981,-500.0,0.00011559,2]
[323667684,1714152646990,-1366.85,0.00011559,2]
[323667686,1714152646999,-2800.02,0.00011559,2]
[323667688,1714152647008,-1139.1,0.00011559,2]
[323667690,1714152647017,-13491.72,0.00011559,2]
[323667692,1714152647026,-614.26,0.00011559,2]
[323667694,1714152647034,-1952.86,0.00011559,2]
[323667696,1714152647044,-500.0,0.00011559,2]
[323667698,1714152647053,-2172.02,0.00011559,2]
[323667700,1714152647061,-2097.22,0.00011559,2]
[323667702,1714152647070,-1646.7,0.00011559,2]
[323667704,1714152647079,-500.0,0.00011559,2]
[323667706,1714152647088,-500.0,0.00011559,2]
[323667708,1714152647097,-1005.85,0.00011559,2]
[323667710,1714152647106,-786.45,0.00011559,2]
[323667712,1714152647114,-3677.42,0.00011559,2]
[323667714,1714152647123,-2434.91,0.00011559,2]
[323667715,1714152647132,-1714.94,0.00011559,2]
[323667717,1714152647141,-500.0,0.00011559,2]
[323667719,1714152647150,-1408.07,0.00011559,2]
[323667721,1714152647159,-500.0,0.00011559,2]
[323667723,1714152647168,-500.0,0.00011559,2]
[323667725,1714152647177,-500.0,0.00011559,2]
[323667727,1714152647186,-500.0,0.00011559,2]
[323667730,1714152647197,-500.0,0.00011559,2]
[323667731,1714152647206,-2182.57,0.00011559,2]
[323667733,1714152647215,-2126.65,0.00011559,2]
[323667735,1714152647225,-500.0,0.00011559,2]
[323667738,1714152647234,-1585.81,0.00011559,2]
[323667739,1714152647243,-1806.59,0.00011559,2]
[323667741,1714152647252,-234.99,0.00011559,2]
[323667744,1714152647262,-500.0,0.00011559,2]
[323667746,1714152647271,-1443.3,0.00011559,2]
[323667748,1714152647280,-500.0,0.00011559,2]
[323667749,1714152647289,-1954.01,0.00011559,2]
[323667751,1714152647298,-576.33,0.00011559,2]
[323667753,1714152647307,-500.0,0.00011559,2]
[323667755,1714152647318,-2523.19,0.00011559,2]
[323667757,1714152647327,-241.57,0.00011559,2]
[323667760,1714152647336,-5903.03,0.00011559,2]
[323667761,1714152647346,-1056.76,0.00011559,2]
[323667763,1714152647355,-500.0,0.00011559,2]
[323667766,1714152647364,-850.88,0.00011559,2]
[323667767,1714152647373,-2248.98,0.00011559,2]
[323667769,1714152647382,-500.0,0.00011559,2]
[323667771,1714152647393,-500.0,0.00011559,2]
[323667774,1714152647402,-592.11,0.00011559,2]
[323667775,1714152647415,-1398.04,0.00011559,2]
[323667778,1714152647427,-500.0,0.00011559,2]
[323667780,1714152647436,-914.25,0.00011559,2]
[323667781,1714152647446,-3366.48,0.00011559,2]
[323667783,1714152647455,-605.23,0.00011559,2]
[323667785,1714152647467,-500.0,0.00011559,2]
[323667788,1714152647477,-500.0,0.00011559,2]
[323667790,1714152647485,-2883.8,0.00011559,2]
[323667792,1714152647494,-500.0,0.00011559,2]
[323667793,1714152647503,-500.0,0.00011559,2]
[323667795,1714152647514,-500.0,0.00011559,2]
[323667797,1714152647523,-1035.0,0.00011559,2]
[323667800,1714152647532,-747.93,0.00011559,2]
[323667801,1714152647542,-6289.52,0.00011559,2]
[323667804,1714152647551,-1410.86,0.00011559,2]
[323667806,1714152647560,-1742.3,0.00011559,2]
[323667808,1714152647570,-4125.89,0.00011559,2]
[323667810,1714152647578,-5227.03,0.00011559,2]
[323667812,1714152647587,-538.91029396,0.00011559,2]
[323667814,1714152647596,-4007.5,0.00011559,2]
[323667816,1714152647606,-500.0,0.00011559,2]
[323667818,1714152647615,-500.0,0.00011559,2]
[323667820,1714152647624,-1772.46,0.00011559,2]
[323667822,1714152647633,-500.0,0.0001156,2]
[323667824,1714152647642,-500.0,0.0001156,2]
[323667826,1714152647651,-500.0,0.0001156,2]
[323667828,1714152647660,-500.0,0.0001156,2]
[323667830,1714152647669,-500.0,0.0001156,2]
[323667832,1714152647678,-500.0,0.0001156,2]
[323667834,1714152647687,-536.32,0.0001156,2]
[323667836,1714152647697,-753.98,0.0001156,2]
[323667838,1714152647705,-500.0,0.0001156,2]
[323667839,1714152647714,-643.54,0.0001156,2]
[323667841,1714152647723,-604.46,0.0001156,2]
[323667843,1714152647733,-469.48,0.0001156,2]
[323667844,1714152647742,-500.0,0.0001156,2]
[323667845,1714152647751,-529.56,0.0001156,2]
[323667846,1714152647759,-500.0,0.0001156,2]
[323667847,1714152647769,-1388.14,0.0001156,2]
[323667848,1714152647778,-500.0,0.0001156,2]
[323667849,1714152647787,-500.0,0.0001156,2]
[323667850,1714152647795,-786.29,0.0001156,2]
[323667851,1714152647804,-500.0,0.0001156,2]
[323667852,1714152647814,-500.0,0.0001156,2]
[323667853,1714152647823,-829.23,0.0001156,2]
[323667854,1714152647833,-500.0,0.0001156,2]
[323667855,1714152647843,-500.0,0.0001156,2]
[323667856,1714152647852,-735.34,0.0001156,2]
[323667857,1714152647861,-541.26,0.0001156,2]
[323667858,1714152647870,-1517.55,0.0001156,2]
[323667859,1714152647879,-680.93,0.0001156,2]
[323667860,1714152647888,-749.86,0.0001156,2]
[323667861,1714152647897,-500.0,0.0001156,2]
[323667862,1714152647907,-500.0,0.0001156,2]
[323667863,1714152647916,-500.0,0.0001156,2]
[323667864,1714152647925,-500.0,0.0001156,2]
[323667865,1714152647935,-1028.81,0.0001156,2]
[323667866,1714152647945,-500.0,0.0001156,2]
[323667867,1714152647954,-1024.18,0.0001156,2]
[323667868,1714152647963,-500.0,0.0001156,2]
[323667869,1714152647972,-500.0,0.0001156,2]
[323667870,1714152647981,-500.0,0.0001156,2]
[323667871,1714152647991,-870.9,0.0001156,2]
[323667872,1714152648000,-759.36,0.0001156,2]
[323667873,1714152648009,-500.0,0.0001156,2]
[323667874,1714152648018,-500.0,0.0001156,2]
[323667875,1714152648027,-1158.93,0.0001156,2]
[323667876,1714152648036,-906.39,0.0001156,2]
[323667877,1714152648046,-500.0,0.0001156,2]
[323667878,1714152648055,-1202.3,0.0001156,2]
[323667879,1714152648065,-500.0,0.0001156,2]
[323667880,1714152648074,-500.0,0.0001156,2]
[323667881,1714152648085,-500.0,0.0001156,2]
[323667882,1714152648095,-500.0,0.0001156,2]
[323667883,1714152648106,-500.0,0.0001156,2]
[323667884,1714152648116,-173.86023274,0.0001156,2]
[323667885,1714152648126,-500.0,0.0001156,2]
[323667886,1714152648136,-596.11,0.0001156,2]
[323667887,1714152648146,-500.0,0.0001156,2]
[323667888,1714152648156,-782.28,0.0001156,2]
[323667889,1714152648165,-500.0,0.0001156,2]
[323667890,1714152648175,-500.0,0.0001156,2]
[323667891,1714152648186,-500.0,0.0001156,2]
[323667892,1714152648198,-500.0,0.0001156,2]
[323667893,1714152648208,-500.0,0.0001156,2]
[323667894,1714152648218,-500.0,0.0001156,2]
[323667895,1714152648228,-612.48,0.0001156,2]
[323667896,1714152648238,-942.76,0.0001156,2]
[323667897,1714152648248,-733.55,0.0001156,2]
[323667898,1714152648257,-500.0,0.0001156,2]
[323667899,1714152648267,-500.0,0.0001156,2]
[323667900,1714152648277,-8837.03,0.0001156,2]
[323667901,1714152648287,-500.0,0.0001156,2]
[323667902,1714152648298,-7957.99,0.0001156,2]
[323667903,1714152648309,-1800.75,0.0001156,2]
[323667904,1714152648319,-500.0,0.0001156,2]
[323667905,1714152648328,-500.0,0.0001156,2]
[323667906,1714152648337,-2046.11,0.0001156,2]
[323667907,1714152648346,-542.99,0.0001156,2]
[323667908,1714152648356,-500.0,0.0001156,2]
[323667909,1714152648365,-1353.45,0.0001156,2]
[323667910,1714152648374,-995.38,0.0001156,2]
[323667911,1714152648384,-500.0,0.0001156,2]
[323667912,1714152648394,-500.0,0.0001156,2]
[323667913,1714152648404,-743.54,0.0001156,2]
[323667914,1714152648418,-2056.67,0.0001156,2]
[323667915,1714152648427,-2203.53,0.0001156,2]
[323667916,1714152648436,-3716.29,0.0001156,2]
[323667917,1714152648448,-7061.14,0.0001156,2]
[323667918,1714152648461,-4653.68,0.0001156,2]
[323667919,1714152648469,-532.14957478,0.0001156,2]
[323667920,1714152648478,-500.0,0.0001156,2]
[323667921,1714152648487,-2200.5,0.0001156,2]
[323667922,1714152648496,-1689.16,0.0001156,2]
[323667923,1714152648507,-1215.07,0.0001156,2]
[323667924,1714152648517,-500.0,0.0001156,2]
[323667925,1714152648526,-3706.62,0.0001156,2]
[323667926,1714152648535,-4697.1,0.0001156,2]
[323667927,1714152648545,-500.0,0.0001156,2]
[323667928,1714152648554,-5858.54,0.0001156,2]
[323667929,1714152648563,-500.0,0.0001156,2]
[323667930,1714152648572,-500.0,0.0001156,2]
[323667931,1714152648582,-1261.36,0.0001156,2]
[323667932,1714152648591,-500.0,0.0001156,2]
[323667933,1714152648602,-500.0,0.0001156,2]
[323667934,1714152648612,-1754.47,0.0001156,2]
[323667935,1714152648622,-500.0,0.0001156,2]
[323667936,1714152648633,-634.15,0.0001156,2]
[323667937,1714152648642,-500.0,0.0001156,2]
[323667938,1714152648652,-500.0,0.0001156,2]
[323667939,1714152648661,-1018.13,0.0001156,2]
[323667940,1714152648670,-3486.53,0.0001156,2]
[323667941,1714152648679,-500.0,0.0001156,2]
[323667942,1714152648688,-1395.91,0.0001156,2]
[323667943,1714152648699,-295.00878785,0.0001156,2]
[323667944,1714152648707,-2170.66,0.0001156,2]
[323667945,1714152648716,-635.89,0.0001156,2]
[323667946,1714152648725,-500.0,0.0001156,2]
[323667947,1714152648734,-500.0,0.0001156,2]
[323667948,1714152648744,-1400.63,0.0001156,2]
[323667949,1714152648754,-694.18,0.0001156,2]
[323667950,1714152648765,-500.0,0.0001156,2]
[323667951,1714152648774,-500.0,0.0001156,2]
[323667952,1714152648783,-2993.07,0.0001156,2]
[323667953,1714152648793,-500.0,0.0001156,2]
[323667954,1714152648803,-1410.37,0.0001156,2]
[323667955,1714152648813,-506.5,0.0001156,2]
[323667956,1714152648822,-500.0,0.00011561,2]
[323667957,1714152648831,-432.32809186,0.00011561,2]
[323667958,1714152648841,-500.0,0.00011561,2]